bitfinex/quotes_ETHUSD_20241203
["timestamp","ask_amount","ask_price","bid_price","bid_amount"]
[1733190577920,1.8018037,3630.5,3629.7,0.2752]
[1733190578417,1.8018037,3630.5,3629.5,0.2752]
[1733190580045,1.6324,3630.5,3629.5,0.2752]
[1733190582045,0.0272,3630.6,3629.7,0.2752]
[1733190584360,0.0272,3630.6,3629.8,0.2752]
[1733190589223,1.5134,3630.5,3629.5,0.2752]
[1733190590527,1.5134,3630.5,3629.4,0.2752]
[1733190590686,0.32936707,3630.4,3629.4,0.2752]
[1733190590887,0.35656707,3630.4,3629.4,0.2752]
[1733190592739,0.0272,3630.4,3629.8,0.2752]
[1733190593099,0.0272,3630.4,3630.0,0.2752]
[1733190593501,0.0272,3630.4,3630.2,0.2752]
[1733190600232,1.6896,3630.4,3629.4,0.2752]
[1733190600432,1.6896,3630.4,3629.6,0.2752]
[1733190600742,1.6896,3630.4,3629.8,0.2752]
[1733190601601,1.6896,3630.4,3629.9,0.2752]
[1733190602541,1.6896,3630.4,3629.6,0.2752]
[1733190603751,0.0272,3630.4,3629.4,0.2752]
[1733190603943,0.0272,3630.4,3630.0,0.2752]
[1733190604126,0.0272,3630.4,3630.2,0.2752]
[1733190605906,0.54924398,3631.4,3631.1,0.2752]
[1733190607072,1.13801197,3631.6,3631.2,0.2752]
[1733190608149,1.16521197,3631.6,3631.3,0.2752]
[1733190608561,1.71718775,3631.6,3631.3,0.2752]
[1733190609165,3.25218775,3631.6,3631.4,0.2752]
[1733190610152,2.70021197,3631.6,3630.8,0.2752]
[1733190610404,2.70021197,3631.6,3630.8,0.46215]
[1733190614872,0.03442323,3631.5,3630.8,0.46215]
[1733190615072,2.70021197,3631.6,3630.8,0.2752]
[1733190617195,1.16521197,3631.6,3630.8,0.2752]
[1733190617488,1.16521197,3631.6,3630.9,1.895]
[1733190618055,1.16521197,3631.6,3631.3,0.2752]
[1733190618254,1.16521197,3631.6,3631.5,0.2752]
[1733190618492,1.16521197,3631.6,3631.5,2.19020091]
[1733190618895,0.03441641,3631.8,3631.1,1.6099]
[1733190619062,2.66580911,3632.0,3630.2,1.6099]
[1733190619267,1.6589,3631.8,3630.4,1.6099]
[1733190619493,0.03442345,3631.7,3630.4,1.6099]
[1733190619698,1.6589,3631.4,3629.9,2.1734627]
[1733190620001,1.6589,3631.0,3630.0,0.49630932]
[1733190620304,1.5078,3630.8,3629.8,0.03763054]
[1733190620476,1.54223455,3630.7,3629.8,0.03763054]
[1733190620857,1.5078,3630.7,3629.8,0.03763054]
[1733190621091,0.03443529,3630.6,3629.8,0.03763054]
[1733190621290,1.5078,3630.7,3629.8,0.03763054]
[1733190621499,1.5078,3630.7,3630.0,0.2752]
[1733190622197,0.0344353,3630.6,3630.0,0.2752]
[1733190622555,1.5078,3630.7,3630.0,0.2752]
[1733190623254,0.0272,3630.6,3630.0,0.2752]
[1733190623906,0.06163532,3630.6,3630.0,0.2752]
[1733190624107,2.66580911,3630.4,3629.8,0.03763054]
[1733190624264,0.03443535,3630.3,3629.8,0.03763054]
[1733190624459,2.66580911,3630.4,3629.8,0.03763054]
[1733190626961,2.66580911,3630.4,3629.8,0.27451261]
[1733190627162,2.66580911,3630.4,3629.9,0.2752]
[1733190627361,2.69300911,3630.4,3629.9,0.2752]
[1733190628404,2.69300911,3630.4,3629.8,0.03763054]
[1733190628956,0.03443543,3630.3,3629.8,0.03763054]
[1733190629209,2.69300911,3630.4,3629.8,0.03763054]
[1733190629593,0.0272,3630.4,3629.8,0.03763054]
[1733190632140,0.0272,3630.4,3629.9,0.04828571]
[1733190632827,0.0272,3630.4,3629.8,0.03763054]
[1733190634635,1.6076,3630.3,3629.8,0.03763054]
[1733190634987,1.6076,3630.3,3629.9,0.04947494]
[1733190635184,1.6076,3630.3,3629.8,0.03763054]
[1733190635625,1.6076,3630.3,3629.9,0.04788507]
[1733190635925,1.6076,3630.3,3629.8,0.03763054]
[1733190636902,1.6076,3630.3,3629.9,0.04788507]
[1733190637104,1.6076,3630.3,3629.9,0.2752]
[1733190637331,1.6076,3630.3,3630.0,0.04789499]
[1733190637640,1.6076,3630.3,3629.9,0.2752]
[1733190638045,1.6076,3630.3,3630.0,0.04789499]
[1733190638428,1.6076,3630.3,3629.8,0.31283054]
[1733190638611,0.0272,3630.4,3630.1,0.0478843]
[1733190638815,0.0272,3630.4,3629.8,0.51809946]
[1733190639449,0.0272,3630.4,3629.9,0.04784386]
[1733190640255,2.69300911,3630.4,3629.9,0.04784386]
[1733190640752,1.6426,3630.3,3629.9,0.04784386]
[1733190643722,2.66580911,3630.0,3629.9,0.04784386]
[1733190644027,4.80775467,3630.0,3629.9,0.04784386]
[1733190644254,4.80775467,3630.0,3629.8,0.03763054]
[1733190644255,2.1744,3629.9,3629.8,0.03763054]
[1733190647269,2.20884532,3629.9,3629.8,0.03763054]
[1733190647866,2.1744,3629.9,3629.8,0.03763054]
[1733190648051,2.71930267,3629.9,3629.8,0.03763054]
[1733190648252,5.38511178,3629.9,3629.8,0.03763054]
[1733190648453,5.4195565,3629.9,3629.8,0.03763054]
[1733190648641,1.5487,3629.8,3628.7,0.2754]
[1733190649086,0.03444583,3629.7,3628.7,0.2754]
[1733190649395,2.66580911,3629.4,3628.7,0.2754]
[1733190649742,1.6254,3629.3,3628.7,0.2754]
[1733190651848,1.6254,3629.3,3628.8,0.04547225]
[1733190653296,1.6526,3629.3,3628.8,0.04547225]
[1733190654174,0.03444827,3629.2,3628.8,0.04547225]
[1733190654890,2.66580911,3629.0,3628.8,0.04547225]
[1733190655098,1.6626,3628.9,3627.0,0.70740485]
[1733190655305,1.6626,3627.2,3627.0,0.1573828]
[1733190655454,1.6626,3627.2,3626.0,0.7338828]
[1733190655455,0.55,3627.1,3626.0,0.7338828]
[1733190655784,2.66580911,3626.8,3626.1,0.2754]
[1733190655989,0.0272,3626.8,3626.1,0.2754]
[1733190656150,4.32840911,3627.6,3626.1,0.2754]
[1733190656346,0.03446436,3627.5,3626.1,0.2754]
[1733190656790,0.55630314,3627.9,3626.3,0.2754]
[1733190657000,2.66580911,3628.0,3626.5,0.2754]
[1733190657156,2.66580911,3628.0,3626.7,1.9019]
[1733190657355,0.02740221,3628.9,3626.7,1.9019]
[1733190657356,0.56110123,3628.1,3626.7,1.9019]
[1733190658376,0.02740221,3628.0,3626.7,1.9019]
[1733190658571,0.02740221,3628.0,3626.7,0.5098695]
[1733190659264,3.25411034,3628.1,3626.7,0.5098695]
[1733190659265,3.25411034,3628.1,3626.9,0.2754]
[1733190659466,3.25411034,3628.1,3627.1,0.2754]
[1733190660297,0.58830123,3628.1,3627.2,0.0275672]
[1733190660504,0.58830123,3628.1,3627.2,0.02756601]
[1733190660667,0.58830123,3628.1,3627.1,0.30296543]
[1733190660869,0.58830123,3628.1,3627.0,0.2754]
[1733190661070,0.58830123,3628.1,3627.2,0.2754]
[1733190661409,0.58830123,3628.1,3627.4,0.2754]
[1733190661781,0.58830123,3628.1,3627.5,0.03300726]
[1733190663092,0.0272,3628.1,3627.5,0.03300726]
[1733190666335,0.0272,3628.1,3627.6,0.2754]
[1733190666537,0.0272,3628.1,3627.5,0.03300726]
[1733190666538,0.0272,3628.1,3627.8,0.2754]
[1733190666753,1.5211,3629.2,3628.0,0.2754]
[1733190666899,1.5211,3629.2,3628.2,0.2754]
[1733190667241,2.66580911,3628.9,3627.0,0.55]
[1733190667428,0.02740221,3628.8,3628.3,0.02968962]
[1733190667611,0.26932113,3628.7,3627.0,0.2322839]
[1733190667815,4.18690911,3628.5,3626.7,0.2754]
[1733190668029,0.02740221,3628.4,3627.1,0.02977687]
[1733190668320,0.02740221,3628.4,3626.9,0.2754]
[1733190668625,0.0272,3628.4,3627.6,0.2754]
[1733190668843,0.0272,3628.4,3627.8,0.2754]
[1733190669151,0.0272,3628.4,3628.0,0.2754]
[1733190669347,0.0272,3628.4,3628.0,0.30295739]
[1733190669503,0.0272,3628.4,3628.0,0.2754]
[1733190669706,0.0272,3628.4,3628.1,0.02964926]
[1733190670132,0.55883268,3629.3,3628.3,0.2754]
[1733190670466,0.32246418,3629.2,3628.4,0.02942161]
[1733190670617,0.55883268,3629.3,3628.5,0.2754]
[1733190670803,0.55883268,3629.3,3628.7,0.2754]
[1733190671152,0.55883268,3629.3,3628.8,0.02937882]
[1733190671750,1.5121,3630.0,3628.9,0.2754]
[1733190672707,1.5121,3630.0,3629.0,0.30459793]
[1733190672909,1.92989091,3630.0,3629.0,0.30459793]
[1733190673542,0.56002205,3629.9,3629.0,0.30459793]
[1733190673750,0.56002205,3629.9,3629.1,0.02722724]
[1733190674209,0.56002205,3629.9,3628.5,0.2754]
[1733190674637,0.56002205,3629.9,3628.6,0.02728072]
[1733190675449,0.0272,3630.0,3629.3,0.2754]
[1733190675663,0.0272,3630.0,3629.5,0.2754]
[1733190675814,0.0272,3630.0,3629.6,0.02754677]
[1733190676010,0.0272,3630.0,3629.6,0.02717378]
[1733190676265,0.54436172,3631.0,3630.6,8.8328]
[1733190676417,0.54436172,3631.0,3630.6,9.1082]
[1733190676761,0.20590617,3630.9,3630.7,0.02705622]
[1733190677818,0.23310617,3630.9,3630.7,0.02705622]
[1733190679136,0.0272,3630.9,3630.7,0.02705622]
[1733190680583,0.0272,3630.9,3630.8,1.5409]
[1733190680944,0.0272,3630.9,3630.8,1.5667059]
[1733190681987,0.0272,3630.9,3630.8,1.577704]
[1733190682733,0.0272,3630.9,3630.8,0.036804]
[1733190682886,0.0272,3630.9,3630.6,0.23504119]
[1733190683095,0.0272,3630.9,3630.7,0.03682003]
[1733190683339,0.0272,3630.9,3630.5,1.5228]
[1733190683502,0.0272,3630.9,3630.6,0.03683606]
[1733190683827,0.0272,3630.9,3630.5,1.75593525]
[1733190683985,0.0272,3630.9,3630.7,0.03682774]
[1733190684186,0.0272,3630.9,3630.6,0.03684376]
[1733190684502,0.0272,3630.9,3630.7,0.03682774]
[1733190684698,0.0272,3630.9,3630.5,1.75593525]
[1733190685014,0.0272,3630.9,3630.6,0.03684376]
[1733190685422,0.18288,3630.9,3630.5,0.23313525]
[1733190685676,0.18288,3630.9,3630.7,0.03682774]
[1733190685802,0.18288,3630.9,3630.6,0.03684376]
[1733190686135,0.18288,3630.9,3630.1,1.5615]
[1733190686136,0.0272,3630.9,3630.7,0.03682774]
[1733190686343,0.0272,3630.9,3630.1,1.79164164]
[1733190686539,0.0272,3630.9,3630.2,0.03355262]
[1733190686703,0.0272,3630.9,3630.4,1.5511]
[1733190687043,0.0272,3630.9,3630.8,2.94120911]
[1733190687224,0.0272,3630.9,3630.8,3.29780836]
[1733190687535,0.0272,3630.9,3630.8,3.3432448]
[1733190687704,1.6377,3631.9,3631.8,0.2754]
[1733190688707,1.6377,3631.9,3630.9,0.2754]
[1733190688943,1.6191,3632.5,3631.1,0.2754]
[1733190689089,0.54251132,3632.1,3631.1,0.2754]
[1733190689459,0.54251132,3632.1,3631.0,1.35912921]
[1733190689635,0.42849091,3632.4,3631.0,1.35912921]
[1733190689935,0.45569091,3632.4,3631.0,1.35912921]
[1733190690238,0.0272,3632.4,3631.0,1.35912921]
[1733190691686,0.0272,3632.4,3631.0,1.33159324]
[1733190692434,0.0272,3632.4,3631.3,0.2754]
[1733190692641,0.55551728,3632.2,3631.3,0.2754]
[1733190692791,0.58271728,3632.2,3631.3,0.2754]
[1733190692993,0.58271728,3632.2,3631.3,0.45947]
[1733190693305,0.58271728,3632.2,3630.8,0.74076182]
[1733190693507,0.58271728,3632.2,3630.9,0.2754]
[1733190694051,0.0272,3632.2,3631.3,0.2754]
[1733190694225,0.0272,3632.2,3631.4,0.02753121]
[1733190694567,0.0272,3632.2,3631.5,0.2754]
[1733190694717,0.0272,3632.2,3631.6,0.02753114]
[1733190695410,0.0272,3632.2,3631.6,0.30293114]
[1733190696138,0.54598405,3632.9,3631.8,0.2754]
[1733190696354,1.5263,3633.1,3632.0,0.2754]
[1733190696505,2.06253708,3633.1,3632.0,0.2754]
[1733190697121,1.17026164,3633.2,3632.1,0.02752586]
[1733190697321,1.17026164,3633.2,3632.2,0.8777]
[1733190697573,1.17026164,3633.2,3632.3,0.30292571]
[1733190697921,0.0272,3633.1,3632.3,0.30292571]
[1733190699671,0.0272,3633.1,3632.3,0.2754]
[1733190699986,0.0272,3633.1,3632.2,0.67080767]
[1733190701214,1.5681,3633.0,3632.2,0.67080767]
[1733190703081,0.0272,3633.1,3632.2,0.67080767]
[1733190703082,0.0272,3633.1,3632.2,0.69833347]
[1733190703609,0.0272,3633.1,3632.2,0.67080767]
[1733190705507,1.5619,3633.0,3632.1,0.2754]
[1733190706510,1.5619,3633.0,3631.8,0.2754]
[1733190706670,1.72081,3633.0,3631.8,0.2754]
[1733190707292,1.72081,3633.0,3631.8,0.51159523]
[1733190708472,1.20271,3633.0,3631.9,1.1889]
[1733190708627,1.20271,3633.0,3632.0,0.2754]
[1733190712158,1.5503,3632.9,3631.9,0.2754]
[1733190712357,1.5503,3632.7,3631.9,0.2754]
[1733190714102,1.661,3632.5,3631.9,0.2754]
[1733190715789,1.5662,3632.1,3632.0,0.2754]
[1733190716793,1.5662,3632.1,3630.6,0.2754]
[1733190716959,1.5934,3632.1,3630.6,0.2754]
[1733190717149,0.42592091,3632.0,3630.8,0.2754]
[1733190717349,1.5934,3632.1,3630.8,0.2754]
[1733190718145,1.5934,3632.1,3630.9,0.2754]
[1733190718567,1.5934,3632.1,3631.0,0.02753698]
[1733190718779,1.5934,3632.1,3631.2,0.2754]
[1733190721309,1.5934,3632.1,3631.2,0.50939467]
[1733190721503,1.75274,3632.1,3631.2,0.50939467]
[1733190722250,1.0856,3632.1,3631.2,0.50939467]
[1733190722671,0.6138,3632.1,3631.2,0.50939467]
[1733190727467,0.6138,3632.1,3631.3,0.02753605]
[1733190727711,0.6138,3632.1,3631.2,0.50939467]
[1733190729096,1.5946,3632.0,3631.2,0.50939467]
[1733190729412,0.42876091,3631.9,3631.2,0.50939467]
[1733190730919,1.5946,3632.0,3631.2,0.50939467]
[1733190731068,1.5946,3632.0,3631.4,0.2754]
[1733190732369,1.5946,3632.0,3631.4,0.50540632]
[1733190734373,0.0272,3632.1,3631.5,0.02753413]
[1733190734573,0.0272,3632.1,3631.5,0.02753232]
[1733190734787,0.0272,3632.1,3631.7,0.2754]
[1733190735478,0.55495417,3632.8,3631.7,0.2754]
[1733190735674,0.55495417,3632.8,3631.8,0.2754]
[1733190736681,0.55495417,3632.8,3631.4,0.2754]
[1733190737329,0.0272,3632.1,3631.4,0.2754]
[1733190737532,0.0272,3632.1,3631.8,0.2754]
[1733190737679,2.18715417,3632.8,3631.8,0.2754]
[1733190738884,1.6322,3632.8,3631.8,0.2754]
[1733190739383,1.6594,3632.8,3631.8,0.2754]
[1733190739981,1.6594,3632.8,3631.9,0.2754]
[1733190740290,0.43252091,3632.7,3631.9,0.2754]
[1733190740485,0.43252091,3632.7,3631.4,1.5975]
[1733190740486,0.45972091,3632.7,3631.4,1.58545198]
[1733190741123,0.45972091,3632.7,3631.5,0.2754]
[1733190742486,4.29290911,3632.6,3631.5,0.2754]
[1733190742723,2.66580911,3632.2,3631.5,0.2754]
[1733190742927,1.5156,3632.1,3631.5,0.2754]
[1733190753066,1.5156,3632.1,3631.1,0.2754]
[1733190755666,1.5428,3632.1,3631.1,0.2754]
[1733190756067,0.42086091,3632.0,3631.1,0.2754]
[1733190756277,1.5429,3631.9,3631.1,0.2754]
[1733190758095,2.66580911,3631.8,3631.1,0.2754]
[1733190759489,1.5835,3631.7,3631.1,0.2754]
[1733190762469,1.6414,3631.3,3631.2,0.2754]
[1733190763008,1.6686,3631.3,3631.2,0.2754]
[1733190763358,1.6686,3631.3,3630.2,0.2754]
[1733190765820,1.6234,3630.9,3630.2,0.2754]
[1733190766585,1.6506,3630.9,3630.2,0.2754]
[1733190767182,1.5026,3630.8,3630.2,0.2754]
[1733190781716,1.5196,3630.6,3630.2,0.2754]
[1733190782151,1.5196,3630.6,3630.3,0.2754]
[1733190782302,1.5468,3630.6,3630.0,0.2754]
[1733190783311,1.5273,3630.1,3628.2,0.2754]
[1733190783551,0.02754951,3630.0,3628.6,0.8254]
[1733190783920,1.5545,3630.1,3628.6,0.8254]
[1733190784106,0.02754951,3630.0,3628.6,0.8254]
[1733190784806,1.5545,3630.1,3628.6,0.8254]
[1733190785003,1.5545,3630.1,3628.6,0.85294969]
[1733190785324,1.5545,3630.1,3628.8,0.2754]
[1733190786250,1.5545,3630.1,3628.9,0.2754]
[1733190786454,1.5545,3630.1,3629.1,0.2754]
[1733190787418,0.0272,3630.1,3629.5,0.2754]
[1733190787623,1.55441071,3630.7,3629.9,0.2754]
[1733190788514,2.66580911,3631.4,3629.9,0.2754]
[1733190789711,0.0272,3630.7,3629.9,0.2754]
[1733190790864,0.0272,3630.7,3629.6,0.2754]
[1733190791028,0.0272,3630.7,3630.2,0.2754]
[1733190791217,1.5118,3631.3,3630.4,0.2754]
[1733190792662,1.539,3631.3,3630.4,0.2754]
[1733190792990,1.539,3631.3,3630.0,0.2754]
[1733190793144,1.539,3631.3,3630.2,0.2754]
[1733190794176,1.539,3631.3,3629.5,0.88282107]
[1733190794177,1.539,3631.3,3630.1,0.2754]
[1733190795255,1.539,3631.3,3629.6,0.2754]
[1733190795596,1.539,3631.3,3629.8,0.8254]
[1733190797352,2.66580911,3631.9,3630.3,0.2754]
[1733190797556,2.66580911,3631.9,3630.5,0.2754]
[1733190797955,2.66580911,3631.9,3630.6,0.02753855]
[1733190798664,2.66580911,3631.9,3630.6,0.02753728]
[1733190798945,2.93239002,3631.9,3630.8,0.2754]
[1733190799605,0.02754951,3631.8,3630.8,0.2754]
[1733190799821,0.02754951,3631.8,3630.5,0.2754]
[1733190800231,2.95959002,3631.9,3630.5,0.2754]
[1733190800414,1.5445,3631.8,3630.5,0.2754]
[1733190800620,1.994909,3631.8,3630.7,0.2754]
[1733190801537,1.994909,3631.8,3630.5,0.2754]
[1733190804366,2.53880422,3631.8,3630.5,0.2754]
[1733190804662,2.08839522,3631.8,3630.7,0.2754]
[1733190804963,1.5445,3631.8,3630.9,0.2754]
[1733190805817,1.5445,3631.8,3631.0,0.2754]
[1733190806822,1.5445,3631.8,3630.9,0.2754]
[1733190808163,0.02754951,3631.7,3630.9,0.2754]
[1733190808317,1.5892,3631.7,3630.9,0.2754]
[1733190808523,1.562,3631.5,3630.9,0.2754]
[1733190808963,1.562,3631.5,3630.5,0.2754]
[1733190809666,1.562,3631.5,3630.5,0.51458223]
[1733190809959,0.02754951,3631.4,3630.5,0.51458223]
[1733190810166,1.5358,3631.3,3630.5,0.51458223]
[1733190811966,1.47505478,3631.3,3630.6,0.02753929]
[1733190812121,1.28903504,3631.3,3630.6,0.02753929]
[1733190812324,2.66580911,3632.5,3630.8,0.2754]
[1733190812560,2.66580911,3632.5,3630.9,0.02753513]
[1733190812955,1.6179,3632.8,3631.2,0.2754]
[1733190813135,1.6179,3632.6,3631.2,0.2754]
[1733190814100,1.6179,3632.6,3631.0,0.2754]
[1733190814272,1.6179,3632.6,3631.2,0.2754]
[1733190814475,1.62321414,3632.5,3631.2,0.2754]
[1733190814652,1.5888,3632.4,3631.2,0.2754]
[1733190815248,1.5001,3632.3,3630.6,0.2754]
[1733190815545,2.66580911,3632.1,3630.8,0.2754]
[1733190815780,1.5001,3631.9,3630.8,0.2754]
[1733190816353,1.53452062,3631.8,3630.6,0.2754]
[1733190818548,1.5001,3631.8,3630.6,0.2754]
[1733190818787,0.03442069,3631.7,3630.8,0.2754]
[1733190818967,1.5502,3631.6,3630.8,0.2754]
[1733190819284,1.5502,3631.5,3630.8,0.2754]
[1733190819791,1.5502,3631.5,3630.9,0.2754]
[1733190820449,0.03442438,3631.4,3630.9,0.2754]
[1733190820650,1.5972,3631.5,3630.2,0.2754]
[1733190820953,2.66580911,3631.7,3630.4,0.2754]
[1733190820954,1.5972,3631.3,3630.4,0.2754]
[1733190821800,1.5972,3631.3,3630.2,0.2754]
[1733190821980,1.67992441,3631.2,3630.2,0.2754]
[1733190822750,1.67992441,3631.2,3629.9,0.2754]
[1733190823454,1.67992441,3631.2,3629.9,0.51280737]
[1733190823655,1.5397,3631.0,3629.9,0.51280737]
[1733190823858,1.57413306,3631.0,3629.9,0.51280737]
[1733190824390,1.5397,3630.9,3629.9,0.51280737]
[1733190824591,1.57413304,3630.8,3629.9,0.51280737]
[1733190824961,1.5397,3630.8,3629.9,0.51280737]
[1733190825161,1.5399,3630.6,3629.9,0.51280737]
[1733190825362,1.5399,3630.3,3629.9,0.23740737]
[1733190825558,1.5399,3630.1,3628.9,0.2754]
[1733190825759,4.32160911,3629.9,3628.9,0.2754]
[1733190826078,1.6558,3629.7,3628.9,0.2754]
[1733190826272,1.6558,3629.5,3628.3,0.2754]
[1733190826470,1.6558,3629.3,3628.3,0.2754]
[1733190826670,1.69024573,3629.2,3628.3,0.2754]
[1733190827055,1.69024573,3629.2,3628.2,0.51272031]
[1733190827260,1.6558,3629.2,3628.2,0.51272031]
[1733190832717,1.6558,3629.2,3628.3,0.2754]
[1733190832922,1.2977,3629.2,3628.3,0.2754]
[1733190833949,0.06438,3629.2,3628.5,1.8746]
[1733190834238,2.66580911,3630.3,3628.6,0.2754]
[1733190834937,2.66580911,3630.3,3628.7,0.04541569]
[1733190835920,2.66580911,3630.3,3628.8,0.01379702]
[1733190836396,2.66580911,3630.3,3628.7,0.04541569]
[1733190836397,2.66580911,3630.3,3628.9,0.04537558]
[1733190837022,1.5263,3630.2,3628.6,0.2754]
[1733190837233,1.5263,3630.2,3628.8,0.2754]
[1733190837607,1.5263,3630.2,3628.9,0.04537558]
[1733190837819,1.5263,3630.2,3628.6,0.01379705]
[1733190838346,1.5263,3630.2,3628.6,0.28919705]
[1733190839611,1.56074086,3630.2,3628.5,1.21411204]
[1733190839812,1.6451,3630.1,3628.5,1.21411204]
[1733190840152,1.6451,3629.9,3628.5,1.21411204]
[1733190840355,0.03444087,3629.8,3628.5,1.21411204]
[1733190841266,1.6451,3629.9,3628.5,1.21411204]
[1733190841759,0.03444087,3629.8,3628.5,1.21411204]
[1733190841913,1.6451,3629.9,3628.5,1.21411204]
[1733190842119,0.03444088,3629.8,3628.5,1.21411204]
[1733190843516,1.6307,3629.7,3628.5,1.21411204]
[1733190843714,0.03444089,3629.6,3628.5,1.21411204]
[1733190844129,1.5999,3629.5,3628.5,1.21411204]
[1733190844327,1.5999,3629.5,3628.6,0.2754]
[1733190845495,1.6656,3629.3,3628.3,0.2754]
[1733190845796,1.70004584,3629.2,3628.3,0.2754]
[1733190846350,2.66580911,3629.1,3628.3,0.50863769]
[1733190846592,1.68755086,3629.0,3628.3,0.50863769]
[1733190846798,1.6531,3629.0,3628.3,0.50863769]
[1733190849755,0.03445087,3628.9,3628.3,0.50863769]
[1733190849994,1.5741,3628.9,3628.3,0.50863769]
[1733190852971,0.8716,3629.2,3628.6,0.2754]
[1733190853178,0.8716,3629.2,3628.8,0.2754]
[1733190854278,0.8716,3629.2,3628.9,0.2754]
[1733190855190,0.8716,3629.2,3628.1,0.2754]
[1733190856563,0.1554,3629.2,3628.2,0.01381083]
[1733190856802,0.1554,3629.2,3628.1,0.2754]
[1733190857205,0.1554,3629.2,3628.3,0.2754]
[1733190858971,0.55,3630.8,3628.5,2.94120911]
[1733190859176,0.56144394,3630.0,3628.5,2.94120911]
[1733190859383,0.03444161,3630.5,3628.5,2.95500768]
[1733190859605,1.6346,3630.4,3628.5,2.94120911]
[1733190859916,1.6094,3630.2,3628.7,0.2754]
[1733190860110,1.6094,3630.2,3628.5,2.66580911]
[1733190860312,1.6094,3630.2,3628.4,1.5345]
[1733190860613,1.6438416,3630.1,3628.4,1.5345]
[1733190860814,1.6438416,3630.1,3628.5,0.2754]
[1733190861114,1.6438416,3630.1,3628.4,1.5345]
[1733190861115,1.6438416,3630.1,3628.7,0.2754]
[1733190861416,1.6094,3630.1,3628.7,0.2754]
[1733190861886,1.6094,3630.1,3628.5,0.28919856]
[1733190862074,1.6094,3630.1,3628.7,0.2754]
[1733190863205,1.64383952,3630.1,3628.7,0.2754]
[1733190863380,1.5898,3629.9,3628.9,0.2754]
[1733190863576,1.5898,3629.7,3628.9,0.2754]
[1733190863799,0.03444355,3629.6,3628.9,0.2754]
[1733190864050,1.5898,3629.7,3628.9,0.2754]
[1733190864387,1.5898,3629.7,3628.5,0.2754]
[1733190864583,1.5898,3629.7,3628.7,0.2754]
[1733190865524,1.5898,3629.7,3628.4,0.2754]
[1733190868375,0.03444411,3629.6,3628.4,0.2754]
[1733190868626,1.5221,3629.5,3628.5,0.2754]
[1733190868781,1.5221,3629.3,3628.5,0.2754]
[1733190868982,1.5617,3629.1,3628.5,0.2754]
[1733190869180,0.19010257,3629.2,3628.5,0.2754]
[1733190869181,1.5617,3628.9,3628.5,0.2754]
[1733190869608,1.5617,3628.9,3628.2,0.2754]
[1733190870516,1.5617,3628.9,3627.8,0.2754]
[1733190871547,1.5617,3628.9,3627.6,0.55]
[1733190871744,1.5617,3628.9,3627.7,0.2754]
[1733190874333,1.5617,3628.9,3627.7,0.51416061]
[1733190874548,1.5617,3628.9,3627.7,2.11216061]
[1733190877867,0.59243423,3629.7,3627.7,2.11216061]
[1733190877868,1.60684838,3628.8,3627.7,0.51416061]
[1733190878022,2.66580911,3628.6,3627.7,0.51416061]
[1733190878223,1.5244,3628.4,3627.7,0.51416061]
[1733190878421,1.5244,3628.2,3627.7,0.51416061]
[1733190879374,1.55885438,3628.2,3627.7,0.51416061]
[1733190879577,1.5244,3628.2,3627.7,0.51416061]
[1733190887686,0.47080001,3628.2,3627.7,0.51416061]
[1733190887858,0.55853351,3628.7,3627.7,0.51416061]
[1733190888060,0.88096777,3628.7,3627.7,0.51416061]
[1733190889076,0.32243426,3628.7,3627.7,0.51416061]
[1733190889570,0.88042139,3628.7,3627.7,0.51416061]
[1733190890987,1.6485,3628.6,3627.7,0.51416061]
[1733190891176,1.6485,3628.6,3627.1,0.2754]
[1733190892166,1.6485,3628.4,3627.1,0.2754]
[1733190894198,1.6485,3628.4,3627.3,0.2754]
[1733190896388,1.6485,3628.4,3627.3,0.83267007]
[1733190897165,1.6485,3628.4,3627.3,0.2754]
[1733190897398,1.65475435,3628.3,3627.3,0.2754]
[1733190897562,1.6203,3628.1,3627.3,0.2754]
[1733190897767,1.6203,3627.9,3627.3,0.2754]
[1733190898002,1.65475899,3627.8,3627.3,0.2754]
[1733190898204,1.65475899,3627.8,3627.1,0.2754]
[1733190899291,1.65475899,3627.8,3626.3,2.90279323]
[1733190899292,1.65475899,3627.8,3627.2,0.2754]
[1733190900176,1.82023489,3627.8,3626.5,0.2754]
[1733190900984,2.66580911,3627.6,3626.5,0.2754]
[1733190901332,1.57436633,3627.5,3626.6,0.2754]
[1733190901534,2.66580911,3627.2,3626.6,0.2754]
[1733190901832,1.5399,3627.0,3626.6,0.2754]
[1733190902017,1.5399,3626.9,3626.6,0.2754]
[1733190902187,1.5399,3627.0,3626.7,0.2754]
[1733190902387,0.03447033,3626.9,3626.7,0.2754]
[1733190902723,0.26658091,3627.1,3626.7,0.2754]
[1733190902724,1.5467,3626.8,3626.7,0.2754]
[1733190902928,1.73147512,3626.8,3626.7,0.2754]
[1733190903431,1.73147512,3626.8,3625.4,0.2754]
[1733190903628,1.63057233,3626.7,3625.4,0.2754]
[1733190904841,1.5527,3626.3,3625.4,0.2754]
[1733190905731,0.56255205,3626.0,3625.4,0.2754]
[1733190905893,1.5591,3625.9,3625.4,0.2754]
[1733190906290,1.59357608,3625.8,3625.4,0.2754]
[1733190906495,1.5591,3625.8,3625.4,0.2754]
[1733190907114,1.5591,3625.8,3625.3,0.23127145]
[1733190907424,1.54348355,3625.7,3623.8,2.94120911]
[1733190907832,1.54348355,3625.7,3623.9,0.55]
[1733190907833,1.509,3625.7,3623.9,0.55]
[1733190908694,1.54348369,3625.7,3623.9,0.55]
[1733190911033,1.509,3625.7,3623.9,0.55]
[1733190912935,4.21520911,3625.6,3623.9,0.55]
[1733190913131,0.15591,3625.9,3623.8,0.51251195]
[1733190913132,1.5494,3625.1,3623.8,0.23711195]
[1733190913305,1.5494,3624.9,3623.4,0.1573828]
[1733190913486,1.58389007,3624.8,3623.4,0.1573828]
[1733190913890,1.58389007,3624.8,3623.4,0.38618671]
[1733190915449,1.5841,3624.7,3623.4,0.38618671]
[1733190915595,1.5841,3624.5,3623.4,0.38618671]
[1733190915795,1.5841,3624.3,3623.4,0.38618671]
[1733190915997,0.42844053,3624.5,3622.2,0.28720674]
[1733190915998,1.5841,3623.5,3622.2,0.28720674]